[Event "World Senior chT-50 2019"]
[Site "Rhodes"]
[Date "2019.04.16"]
[Round "1.20"]
[White "Gruenfeld, Yehuda"]
[Black "Harlinska, Sandra"]
[Result "1-0"]
[ECO "B19"]
[WhiteElo "2428"]
[BlackElo "1833"]
[Annotator "NA RC"]
[PlyCount "65"]
[EventDate "2019.04.16"]
[EventType "team-tourn"]
[EventCountry "GRE"]
[SourceTitle "playchess.com"]
[Source "ChessBase"]
[SourceQuality "1"]
[WhiteTeam "Israel"]
[BlackTeam "Latvia"]
[WhiteTeamCountry "ISR"]
[BlackTeamCountry "LAT"]
[TimeControl "40/5400+30:1800+30"]

1. e4 {[%emt 0:00:00]} c6 {[%emt 0:00:00]} 2. d4 {[%emt 0:00:00]} d5 {[%emt 0:00:00]} 3. Nc3 {[%emt 0:00:00]} dxe4 {[%emt 0:00:00]} 4. Nxe4 {[%emt 0:00:00]} Bf5 {[%emt 0:00:05]} 5. Ng3 {[%emt 0:00:06]} Bg6 {[%emt 0:00:08]} 6. h4 {[%emt 0:00:05]} h6 {[%emt 0:00:13]} 7. h5 {[%emt 0:00:06]} Bh7 {[%emt 0:00:09]} 8. Nf3 {[%emt 0:00:11]} Nd7 {[%emt 0:00:27]} 9. Bd3 {[%emt 0:00:21]} Bxd3 {[%emt 0:00:19]} 10. Qxd3 {[%emt 0:00:06]} Ngf6 {[%emt 0:00:16]} 11. Bd2 {[%emt 0:00:07]} e6 {[%emt 0:01:02]} 12. Qe2 {[%emt 0:00:58]} Be7 {[%emt 0:03:33]} 13. O-O-O {[%emt 0:00:59]} Qc7 {[%emt 0:17:36]} 14. Ne5 {[%emt 0:02:10]} Nxe5 {[%emt 0:03:31]} 15. dxe5 {[%emt 0:00:08]} Nd7 {[%emt 0:00:08]} 16. f4 {[%emt 0:00:09]} O-O-O {[%emt 0:00:24]} 17. Ne4 {[%emt 0:03:41]} Nc5 {[%emt 0:05:24]} 18. Nc3 {[%emt 0:00:06]} Kb8 {[%emt 0:24:00]} 19. Be3 {[%emt 0:08:26]} Qa5 {[%emt 0:05:32]} 20. Qf2 {[%emt 0:06:34]} Na4 {[%emt 0:23:44]} 21. Bxa7+ {[%emt 0:02:55]} Ka8 {[%emt 0:00:05]} 22. Nxa4 {[%emt 0:00:33]} Qxa4 {[%emt 0:00:06]} 23. Bb6 {[%emt 0:00:10]} Rxd1+ {[%emt 0:00:21]} 24. Rxd1 {[%emt 0:00:16]} Qxa2 {[%emt 0:00:40]} 25. Qd4 {[%emt 0:01:40]} Qa1+ {[%emt 0:01:45]} 26. Kd2 {[%emt 0:00:12]} Qa6 {[%emt 0:00:30]} 27. b4 {[%emt 0:05:44]} Kb8 {[%emt 0:01:21]} 28. Ke3 {[%emt 0:02:58]} Qa3+ {[%emt 0:03:58]} 29. c3 {[%emt 0:08:27]} Qb3 {[%emt 0:00:17]} 30. Ba7+ {[%emt 0:01:30]} Ka8 {[%emt 0:00:30]} 31. Ra1 {[%emt 0:00:50]} Re8 {[%emt 0:04:06]} 32. Bc5+ {[%emt 0:00:40]} Kb8 {[%emt 0:00:07]} 33. Bd6+ {[%emt 0:00:43]} 1-0

[Event "World Senior chT-50 2019"]
[Site "Rhodes"]
[Date "2019.04.16"]
[Round "1.22"]
[White "Gamback, Bjorn"]
[Black "Mariotti, Sergio"]
[Result "1/2-1/2"]
[ECO "B22"]
[WhiteElo "2101"]
[BlackElo "2280"]
[Annotator "NA"]
[PlyCount "55"]
[EventDate "2019.04.16"]
[EventType "team-tourn"]
[EventCountry "GRE"]
[SourceTitle "playchess.com"]
[Source "ChessBase"]
[SourceQuality "1"]
[WhiteTeam "Sweden"]
[BlackTeam "Italy"]
[WhiteTeamCountry "SWE"]
[BlackTeamCountry "ITA"]
[TimeControl "40/5400+30:1800+30"]

1. e4 {[%emt 0:00:00]} c5 {[%emt 0:00:00]} 2. Nf3 {[%emt 0:00:00]} e6 {[%emt 0:00:00]} 3. c3 {[%emt 0:00:00]} d5 {[%emt 0:00:00]} 4. exd5 {[%emt 0:00:00]} Qxd5 {[%emt 0:00:00]} 5. d4 {[%emt 0:00:01]} Nf6 {[%emt 0:00:00]} 6. Bd3 {[%emt 0:00:26]} cxd4 {[%emt 0:00:04]} 7. cxd4 {[%emt 0:00:13]} Be7 {[%emt 0:00:06]} 8. Nc3 {[%emt 0:00:13]} Qd6 {[%emt 0:00:09]} 9. Bg5 {[%emt 0:01:05]} O-O {[%emt 0:00:10]} 10. O-O {[%emt 0:00:10]} Nc6 {[%emt 0:07:02]} 11. Rc1 {[%emt 0:01:38]} Rd8 {[%emt 0:02:41]} 12. Nb5 {[%emt 0:03:22]} Qd7 {[%emt 0:00:08]} 13. Ne5 {[%emt 0:26:44]} Nxe5 {[%emt 0:04:09]} 14. Rc7 {[%emt 0:02:31]} Nxd3 {[%emt 0:07:32]} 15. Rxd7 {[%emt 0:02:19]} Bxd7 {[%emt 0:00:02]} 16. Qxd3 {[%emt 0:00:42]} Bxb5 {[%emt 0:00:02]} 17. Qxb5 {[%emt 0:00:27]} b6 {[%emt 0:00:01]} 18. Qa4 {[%emt 0:06:39]} Nd5 {[%emt 0:00:33]} 19. Bxe7 {[%emt 0:01:25]} Nxe7 {[%emt 0:00:02]} 20. Rc1 {[%emt 0:00:51]} Nd5 {[%emt 0:00:03]} 21. Kf1 {[%emt 0:05:04]} a5 {[%emt 0:01:46]} 22. a3 {[%emt 0:07:19]} Rac8 {[%emt 0:00:35]} 23. Rc4 {[%emt 0:04:18]} Rxc4 {[%emt 0:00:03]} 24. Qxc4 {[%emt 0:00:06]} g6 {[%emt 0:00:02]} 25. g3 {[%emt 0:01:35]} Kg7 {[%emt 0:00:06]} 26. Ke2 {[%emt 0:00:30]} Rd7 {[%emt 0:00:16]} 27. Qb5 {[%emt 0:02:20]} Rc7 {[%emt 0:00:02]} 28. Kd2 {[%emt 0:00:30]} 1/2-1/2

[Event "World Senior chT-50 2019"]
[Site "Rhodes"]
[Date "2019.04.16"]
[Round "1.31"]
[White "Grushka, Carlos"]
[Black "Adams, Mark"]
[Result "1-0"]
[ECO "A43"]
[WhiteElo "2251"]
[BlackElo "1971"]
[Annotator "NA"]
[PlyCount "83"]
[EventDate "2019.04.16"]
[EventType "team-tourn"]
[EventCountry "GRE"]
[SourceTitle "playchess.com"]
[Source "ChessBase"]
[SourceQuality "1"]
[WhiteTeam "Argentina"]
[BlackTeam "Wales"]
[WhiteTeamCountry "ARG"]
[BlackTeamCountry "WLS"]
[TimeControl "40/5400+30:1800+30"]

1. d4 {[%emt 0:00:00]} Nf6 {[%emt 0:00:00]} 2. g3 {[%emt 0:00:00]} c5 {[%emt 0:02:15]} 3. d5 {[%emt 0:00:00]} d6 {[%emt 0:00:04]} 4. Bg2 {[%emt 0:00:06]} g6 {[%emt 0:00:08]} 5. Nc3 {[%emt 0:02:34]} Bg7 {[%emt 0:00:17]} 6. Nf3 {[%emt 0:00:17]} O-O {[%emt 0:00:52]} 7. O-O {[%emt 0:00:12]} Na6 {[%emt 0:05:41]} 8. Nd2 {[%emt 0:03:52]} Nc7 {[%emt 0:04:47]} 9. a4 {[%emt 0:00:52]} Bd7 {[%emt 0:05:55]} 10. Nc4 {[%emt 0:01:56]} Rb8 {[%emt 0:07:37]} 11. Re1 {[%emt 0:02:45]} Nfe8 {[%emt 0:15:25]} 12. e4 {[%emt 0:01:50]} e5 {[%emt 0:14:13]} 13. dxe6 {[%emt 0:01:39]} Bxe6 {[%emt 0:02:10]} 14. Nd5 {[%emt 0:00:18]} Nxd5 {[%emt 0:04:52]} 15. exd5 {[%emt 0:00:07]} Bf5 {[%emt 0:04:28]} 16. g4 {[%emt 0:05:06]} Bc8 {[%emt 0:02:33]} 17. Bf4 {[%emt 0:01:01]} b6 {[%emt 0:02:10]} 18. c3 {[%emt 0:05:27]} Ba6 {[%emt 0:03:33]} 19. Bf1 {[%emt 0:02:06]} Bxc4 {[%emt 0:05:19]} 20. Bxc4 {[%emt 0:00:15]} Nc7 {[%emt 0:00:09]} 21. Qf3 {[%emt 0:02:18]} Qd7 {[%emt 0:01:55]} 22. Qg3 {[%emt 0:02:15]} Rfd8 {[%emt 0:02:41]} 23. Re3 {[%emt 0:11:06]} Bf8 {[%emt 0:01:52]} 24. Qh4 {[%emt 0:03:52]} f6 {[%emt 0:09:18]} 25. Qxf6 {[%emt 0:12:06]} Qxg4+ {[%emt 0:00:29]} 26. Rg3 {[%emt 0:02:05]} Qd7 {[%emt 0:00:07]} 27. Re1 {[%emt 0:01:25]} Qf7 {[%emt 0:01:12]} 28. Qg5 {[%emt 0:04:48]} Re8 {[%emt 0:00:04]} 29. Re6 {[%emt 0:01:18]} Nxe6 {[%emt 0:02:35]} 30. dxe6 {[%emt 0:00:09]} Qe7 {[%emt 0:00:08]} 31. Qd5 {[%emt 0:00:52]} Kh8 {[%emt 0:01:03]} 32. Bg5 {[%emt 0:00:55]} Qb7 {[%emt 0:00:09]} 33. Bf6+ {[%emt 0:06:19]} Bg7 {[%emt 0:00:41]} 34. Bxg7+ {[%emt 0:00:50]} Qxg7 {[%emt 0:01:04]} 35. Bb5 {[%emt 0:08:25]} Re7 {[%emt 0:01:01]} 36. Qxd6 {[%emt 0:05:34]} Rf8 {[%emt 0:00:06]} 37. Bc6 {[%emt 0:03:21]} Rf6 {[%emt 0:00:55]} 38. Bd5 {[%emt 0:05:15]} Qf8 {[%emt 0:00:06]} 39. Qe5 {[%emt 0:02:45]} Qg7 {[%emt 0:00:28]} 40. Re3 {[%emt 0:00:00]} Rf5 {[%emt 0:00:00]} 41. Qb8+ {[%emt 0:06:56]} Qf8 {[%emt 0:02:45]} 42. Qxf8+ {[%emt 0:02:28] Rff7 [%emt 00:00:05] Qxe7 Rxe7 [%clk 00:29:49] c4 [%clk 00:25:38] [%emt 00:00:26]} 1-0

[Event "World Senior chT-50 2019"]
[Site "Rhodes"]
[Date "2019.04.16"]
[Round "1.32"]
[White "Hughes, Anthony"]
[Black "Perez Wertheim, Rodolfo"]
[Result "0-1"]
[ECO "A49"]
[WhiteElo "1910"]
[BlackElo "1914"]
[Annotator "NA"]
[PlyCount "82"]
[EventDate "2019.04.16"]
[EventType "team-tourn"]
[EventCountry "GRE"]
[SourceTitle "playchess.com"]
[Source "ChessBase"]
[SourceQuality "1"]
[WhiteTeam "Wales"]
[BlackTeam "Argentina"]
[WhiteTeamCountry "WLS"]
[BlackTeamCountry "ARG"]
[TimeControl "40/5400+30:1800+30"]

1. d4 {[%emt 0:00:00]} Nf6 {[%emt 0:00:00]} 2. Nf3 {[%emt 0:00:00]} g6 {[%emt 0:00:41]} 3. g3 {[%emt 0:00:00]} Bg7 {[%emt 0:00:07]} 4. Bg2 {[%emt 0:00:00]} O-O {[%emt 0:02:11]} 5. O-O {[%emt 0:00:04]} d6 {[%emt 0:01:35]} 6. a4 {[%emt 0:00:13]} Nbd7 {[%emt 0:02:45]} 7. a5 {[%emt 0:00:22]} Rb8 {[%emt 0:03:30]} 8. Nc3 {[%emt 0:02:54]} c5 {[%emt 0:16:04]} 9. e4 {[%emt 0:24:38]} cxd4 {[%emt 0:00:20]} 10. Nxd4 {[%emt 0:00:34]} a6 {[%emt 0:01:52]} 11. Be3 {[%emt 0:07:31]} Ne5 {[%emt 0:05:05]} 12. Qe2 {[%emt 0:06:54]} Qc7 {[%emt 0:06:27]} 13. Nd5 {[%emt 0:18:19]} Nxd5 {[%emt 0:00:10]} 14. exd5 {[%emt 0:00:06]} Nc4 {[%emt 0:03:52]} 15. Ra4 {[%emt 0:26:41]} Nxe3 {[%emt 0:01:25]} 16. fxe3 {[%emt 0:01:36]} Bd7 {[%emt 0:00:33]} 17. Qc4 {[%emt 0:01:14]} Qc5 {[%emt 0:04:41]} 18. Rb4 {[%emt 0:01:09]} Qxa5 {[%emt 0:01:37]} 19. Nb3 {[%emt 0:01:00]} Qd8 {[%emt 0:00:54]} 20. Nd4 {[%emt 0:01:59]} b5 {[%emt 0:12:28]} 21. Qa2 {[%emt 0:01:30]} a5 {[%emt 0:03:12]} 22. Rb3 {[%emt 0:00:09]} Bxd4 {[%emt 0:04:58]} 23. exd4 {[%emt 0:00:07]} Qb6 {[%emt 0:00:40]} 24. Rd3 {[%emt 0:00:20]} Rbc8 {[%emt 0:06:38]} 25. Rd2 {[%emt 0:00:21]} Rc4 {[%emt 0:01:09]} 26. c3 {[%emt 0:00:27]} Rfc8 {[%emt 0:02:51]} 27. Rc1 {[%emt 0:00:54]} b4 {[%emt 0:01:17]} 28. Bf1 {[%emt 0:01:25]} bxc3 {[%emt 0:01:03]} 29. bxc3 {[%emt 0:00:38]} Rxc3 {[%emt 0:00:40]} 30. Rb1 {[%emt 0:00:11]} Qa7 {[%emt 0:01:34]} 31. Ra1 {[%emt 0:00:44]} Rc1 {[%emt 0:02:27]} 32. Kf2 {[%emt 0:01:17]} a4 {[%emt 0:00:31]} 33. Ke3 {[%emt 0:00:59]} Qb6 {[%emt 0:03:19]} 34. Bd3 {[%emt 0:01:02]} R8c3 {[%emt 0:02:23]} 35. Rb2 {[%emt 0:00:31]} Qa6 {[%emt 0:01:53]} 36. Rd2 {[%emt 0:00:10]} Rxa1 {[%emt 0:00:42]} 37. Qxa1 {[%emt 0:00:10]} Qc4 {[%emt 0:01:02]} 38. Qb1 {[%emt 0:01:46]} Bf5 {[%emt 0:02:35]} 39. Ke2 {[%emt 0:00:10]} Rxd3 {[%emt 0:00:22]} 40. Rxd3 {[%emt 0:00:00]} a3 {[%emt 0:00:00]} 41. Qb3 {[%emt 0:05:12]} Qxd3+ {[%emt 0:00:57]} 0-1

[Event "World Senior chT-50 2019"]
[Site "Rhodes"]
[Date "2019.04.16"]
[Round "1.33"]
[White "Mitrandzas, Athanasios"]
[Black "Wallner, Joachim"]
[Result "0-1"]
[ECO "E17"]
[WhiteElo "2055"]
[BlackElo "2271"]
[Annotator "ChessBase"]
[PlyCount "82"]
[EventDate "2019.04.16"]
[EventType "team-tourn"]
[EventCountry "GRE"]
[SourceTitle "playchess.com"]
[Source "ChessBase"]
[SourceQuality "1"]
[WhiteTeam "Greece"]
[BlackTeam "Austria"]
[WhiteTeamCountry "GRE"]
[BlackTeamCountry "AUT"]
[TimeControl "40/5400+30:1800+30"]

1. c4 {[%emt 0:00:00]} Nf6 {[%emt 0:00:00]} 2. g3 {[%emt 0:00:02]} c6 {[%emt 0:00:24]} 3. Nf3 {[%emt 0:00:32]} d5 {[%emt 0:00:03]} 4. Bg2 {[%emt 0:00:14]} e6 {[%emt 0:01:40]} 5. b3 {[%emt 0:00:52]} Be7 {[%emt 0:00:58]} 6. O-O {[%emt 0:00:20]} O-O {[%emt 0:00:03]} 7. Bb2 {[%emt 0:00:41]} b6 {[%emt 0:02:02]} 8. d3 {[%emt 0:06:47]} Bb7 {[%emt 0:00:56]} 9. Nbd2 {[%emt 0:03:27]} c5 {[%emt 0:02:03]} 10. cxd5 {[%emt 0:06:59]} Nxd5 {[%emt 0:04:25]} 11. d4 {[%emt 0:00:56]} Nd7 {[%emt 0:02:05]} 12. Nc4 {[%emt 0:06:12]} N7f6 {[%emt 0:09:12]} 13. Re1 {[%emt 0:07:35]} b5 {[%emt 0:02:48]} 14. Nce5 {[%emt 0:02:58]} Qb6 {[%emt 0:04:50]} 15. e4 {[%emt 0:04:11]} Nc7 {[%emt 0:01:19]} 16. Qc2 {[%emt 0:05:56]} Na6 {[%emt 0:02:10]} 17. a3 {[%emt 0:03:08]} Rac8 {[%emt 0:00:03]} 18. d5 {[%emt 0:06:58]} Nc7 {[%emt 0:10:30]} 19. Nxf7 {[%emt 0:06:13]} Rxf7 {[%emt 0:00:50]} 20. d6 {[%emt 0:00:07]} Bxd6 {[%emt 0:00:21]} 21. e5 {[%emt 0:00:11]} Be4 {[%emt 0:17:25]} 22. Rxe4 {[%emt 0:04:39]} Nxe4 {[%emt 0:00:04]} 23. exd6 {[%emt 0:00:13]} Nxd6 {[%emt 0:00:08]} 24. Ng5 {[%emt 0:00:16]} Rf5 {[%emt 0:00:12]} 25. h4 {[%emt 0:08:39]} h6 {[%emt 0:07:53]} 26. g4 {[%emt 0:06:38]} hxg5 {[%emt 0:08:24]} 27. gxf5 {[%emt 0:00:07]} Nxf5 {[%emt 0:01:41]} 28. hxg5 {[%emt 0:00:19]} Qd6 {[%emt 0:01:25]} 29. Qe4 {[%emt 0:04:25]} Qd2 {[%emt 0:02:06]} 30. Qb7 {[%emt 0:01:22]} Nd6 {[%emt 0:00:34]} 31. Qc6 {[%emt 0:00:33]} Qxb2 {[%emt 0:00:43]} 32. Rd1 {[%emt 0:00:19]} Nce8 {[%emt 0:00:08]} 33. Qd7 {[%emt 0:00:35]} Qe5 {[%emt 0:01:09]} 34. g6 {[%emt 0:01:42]} Rb8 {[%emt 0:04:32]} 35. Qxa7 {[%emt 0:01:34]} Rd8 {[%emt 0:02:04]} 36. Rd3 {[%emt 0:03:27]} Qf6 {[%emt 0:01:29]} 37. Rf3 {[%emt 0:01:07]} Nf5 {[%emt 0:00:36]} 38. Qxc5 {[%emt 0:00:22]} Qxg6 {[%emt 0:01:28]} 39. Qxb5 {[%emt 0:02:28]} Nf6 {[%emt 0:01:40]} 40. Qb6 {[%emt 0:00:00]} Rd1+ {[%emt 0:00:00]} 41. Kh2 {[%emt 0:01:16]} Ng4+ {[%emt 0:00:14]} 0-1

[Event "World Senior chT-50 2019"]
[Site "Rhodes"]
[Date "2019.04.16"]
[Round "1.34"]
[White "Denk, Adolf"]
[Black "Ilandzis, Spyridon"]
[Result "1/2-1/2"]
[ECO "A31"]
[WhiteElo "2255"]
[BlackElo "2021"]
[Annotator "NA"]
[PlyCount "39"]
[EventDate "2019.04.16"]
[EventType "team-tourn"]
[EventCountry "GRE"]
[SourceTitle "playchess.com"]
[Source "ChessBase"]
[SourceQuality "1"]
[WhiteTeam "Austria"]
[BlackTeam "Greece"]
[WhiteTeamCountry "AUT"]
[BlackTeamCountry "GRE"]
[TimeControl "40/5400+30:1800+30"]

1. d4 {[%emt 0:00:00]} Nf6 {[%emt 0:00:00]} 2. Nf3 {[%emt 0:00:00]} c5 {[%emt 0:00:23]} 3. c4 {[%emt 0:00:00]} cxd4 {[%emt 0:00:20]} 4. Nxd4 {[%emt 0:00:00]} e5 {[%emt 0:01:23]} 5. Nb5 {[%emt 0:02:35]} d5 {[%emt 0:00:35]} 6. cxd5 {[%emt 0:00:12]} Bc5 {[%emt 0:00:50]} 7. N5c3 {[%emt 0:04:12]} O-O {[%emt 0:03:51]} 8. e3 {[%emt 0:00:46]} e4 {[%emt 0:00:41]} 9. Be2 {[%emt 0:03:29]} Qe7 {[%emt 0:00:29]} 10. Nd2 {[%emt 0:02:55]} Rd8 {[%emt 0:02:06]} 11. Nb3 {[%emt 0:30:00]} Bb4 {[%emt 0:06:02]} 12. Bd2 {[%emt 0:04:46]} Bxc3 {[%emt 0:04:01]} 13. bxc3 {[%emt 0:02:11]} Nxd5 {[%emt 0:03:26]} 14. Qc2 {[%emt 0:04:31]} Nc6 {[%emt 0:02:35]} 15. O-O {[%emt 0:03:12]} Bf5 {[%emt 0:05:44]} 16. Nd4 {[%emt 0:01:26]} Bg6 {[%emt 0:08:22]} 17. Rab1 {[%emt 0:08:07]} Rac8 {[%emt 0:05:55]} 18. Qa4 {[%emt 0:02:24]} Nb6 {[%emt 0:11:13]} 19. Qb5 {[%emt 0:03:17]} Rd5 {[%emt 0:05:34]} 20. Qb3 {[%emt 0:02:09]} 1/2-1/2

[Event "World Senior chT-50 2019"]
[Site "Rhodes"]
[Date "2019.04.16"]
[Round "1.35"]
[White "Hrisanthopoulos, Dimitrios"]
[Black "Ernst, Michael"]
[Result "1/2-1/2"]
[ECO "C11"]
[WhiteElo "1995"]
[BlackElo "2184"]
[Annotator "NA"]
[PlyCount "62"]
[EventDate "2019.04.16"]
[EventType "team-tourn"]
[EventCountry "GRE"]
[SourceTitle "playchess.com"]
[Source "ChessBase"]
[SourceQuality "1"]
[WhiteTeam "Greece"]
[BlackTeam "Austria"]
[WhiteTeamCountry "GRE"]
[BlackTeamCountry "AUT"]
[TimeControl "40/5400+30:1800+30"]

1. e4 {[%emt 0:00:00]} e6 {[%emt 0:00:00]} 2. d4 {[%emt 0:00:00]} d5 {[%emt 0:00:00]} 3. Nc3 {[%emt 0:00:01]} Nf6 {[%emt 0:00:00]} 4. e5 {[%emt 0:00:15]} Nfd7 {[%emt 0:00:00]} 5. f4 {[%emt 0:00:14]} c5 {[%emt 0:00:05]} 6. Nf3 {[%emt 0:00:08]} Nc6 {[%emt 0:00:07]} 7. Be3 {[%emt 0:00:17]} cxd4 {[%emt 0:00:09]} 8. Nxd4 {[%emt 0:00:18]} Bc5 {[%emt 0:00:07]} 9. Qd2 {[%emt 0:00:56]} Bxd4 {[%emt 0:01:01]} 10. Bxd4 {[%emt 0:00:28]} Nxd4 {[%emt 0:00:04]} 11. Qxd4 {[%emt 0:00:20]} Qb6 {[%emt 0:00:05]} 12. Qd2 {[%emt 0:05:20]} a6 {[%emt 0:02:54]} 13. O-O-O {[%emt 0:02:54]} Nc5 {[%emt 0:01:04]} 14. Bd3 {[%emt 0:02:54]} Bd7 {[%emt 0:00:33]} 15. Kb1 {[%emt 0:02:36]} O-O-O {[%emt 0:00:43]} 16. Qf2 {[%emt 0:01:21]} Na4 {[%emt 0:07:14]} 17. Qxb6 {[%emt 0:02:10]} Nxb6 {[%emt 0:00:04]} 18. Ne2 {[%emt 0:00:36]} f6 {[%emt 0:04:14]} 19. Nd4 {[%emt 0:04:02]} h5 {[%emt 0:03:21]} 20. Rhe1 {[%emt 0:02:58]} f5 {[%emt 0:02:37]} 21. Re3 {[%emt 0:12:13]} h4 {[%emt 0:06:06]} 22. b3 {[%emt 0:02:30]} g5 {[%emt 0:02:43]} 23. fxg5 {[%emt 0:02:09]} Rdg8 {[%emt 0:01:20]} 24. Rh3 {[%emt 0:15:57]} Rxg5 {[%emt 0:02:01]} 25. g3 {[%emt 0:00:48]} Rgh5 {[%emt 0:00:44]} 26. Nf3 {[%emt 0:01:49]} hxg3 {[%emt 0:01:04]} 27. Rxg3 {[%emt 0:00:40]} Be8 {[%emt 0:07:13]} 28. Rdg1 {[%emt 0:02:19]} Kd8 {[%emt 0:02:16]} 29. Rg7 {[%emt 0:02:36]} Nd7 {[%emt 0:03:00]} 30. h4 {[%emt 0:02:29]} R5h6 {[%emt 0:02:03]} 31. b4 {[%emt 0:05:56]} Bh5 {[%emt 0:08:11]} 1/2-1/2

[Event "World Senior chT-50 2019"]
[Site "Rhodes"]
[Date "2019.04.16"]
[Round "1.36"]
[White "Kranzl, Peter"]
[Black "Papadimitriou, Loukas"]
[Result "1/2-1/2"]
[ECO "C42"]
[WhiteElo "2145"]
[BlackElo "1943"]
[Annotator "ChessBase"]
[PlyCount "61"]
[EventDate "2019.04.16"]
[EventType "team-tourn"]
[EventCountry "GRE"]
[SourceTitle "playchess.com"]
[Source "ChessBase"]
[SourceQuality "1"]
[WhiteTeam "Austria"]
[BlackTeam "Greece"]
[WhiteTeamCountry "AUT"]
[BlackTeamCountry "GRE"]
[TimeControl "40/5400+30:1800+30"]

1. e4 {[%emt 0:00:00]} e5 {[%emt 0:00:00]} 2. Nf3 {[%emt 0:00:00]} Nf6 {[%emt 0:00:00]} 3. Nxe5 {[%emt 0:00:17]} d6 {[%emt 0:00:00]} 4. Nd3 {[%emt 0:00:36]} Nxe4 {[%emt 0:00:00]} 5. Qe2 {[%emt 0:00:38]} Qe7 {[%emt 0:00:16]} 6. b3 {[%emt 0:05:55]} Bf5 {[%emt 0:05:59]} 7. Bb2 {[%emt 0:02:18]} Nd7 {[%emt 0:00:07]} 8. Na3 {[%emt 0:02:48]} O-O-O {[%emt 0:05:03]} 9. O-O-O {[%emt 0:02:35]} Nef6 {[%emt 0:05:01]} 10. f3 {[%emt 0:14:29]} Qxe2 {[%emt 0:01:05]} 11. Bxe2 {[%emt 0:00:06]} h5 {[%emt 0:03:37]} 12. Nc4 {[%emt 0:06:00]} Be7 {[%emt 0:06:13]} 13. Ne3 {[%emt 0:06:03]} Bh7 {[%emt 0:01:15]} 14. Nf4 {[%emt 0:06:35]} c6 {[%emt 0:01:13]} 15. h4 {[%emt 0:04:26]} Rhe8 {[%emt 0:01:04]} 16. Bd3 {[%emt 0:03:11]} Bxd3 {[%emt 0:00:15]} 17. Nxd3 {[%emt 0:00:05]} g6 {[%emt 0:01:03]} 18. Rdf1 {[%emt 0:04:58]} d5 {[%emt 0:13:52]} 19. g4 {[%emt 0:04:43]} Bd6 {[%emt 0:00:25]} 20. g5 {[%emt 0:00:19]} Ng8 {[%emt 0:00:07]} 21. f4 {[%emt 0:02:07]} Nc5 {[%emt 0:29:25]} 22. Nxc5 {[%emt 0:04:05]} Bxc5 {[%emt 0:00:04]} 23. f5 {[%emt 0:01:20]} d4 {[%emt 0:03:01]} 24. Ng2 {[%emt 0:01:37]} Ne7 {[%emt 0:00:25]} 25. fxg6 {[%emt 0:00:15]} fxg6 {[%emt 0:01:16]} 26. Rf6 {[%emt 0:04:59]} Nd5 {[%emt 0:06:33]} 27. Rxg6 {[%emt 0:01:23]} Re2 {[%emt 0:01:31]} 28. Ne1 {[%emt 0:00:56]} Bb4 {[%emt 0:00:46]} 29. Nd3 {[%emt 0:06:48]} Bxd2+ {[%emt 0:00:18]} 30. Kb1 {[%emt 0:04:31]} Ne7 {[%emt 0:00:05]} 31. Rf6 1/2-1/2